Workbook

Sheet Rachunek_wyników
A1: FUNDACJA NUTRICIA | C1: REGON: 011957577
A2: ul. Bobrowiecka 8 00-728 Warszawa | C2: NIP : 113-21-26-885
B3: Rachunek zysków i strat
B5: na dzień 31 grudnia 2017 r.
A6: Rachunek zysków i strat sporządzony na podstawie załącznika nr 4 ustawy o rachunkowości dla organizacji nieprowadzących działalności gospodarczej
A8: Pozycja | B8: Wyszczególnienie | C8: Kwota za poprzedni rok obrotowy | D8: Kwota za bieżący rok obrotowy
A10: 1 | B10: 2 | C10: 3 | D10: 4
A11: A. | B11: Przychody podstawowej działalności operacyjnej i zrównane z nimi, w tym zmiana stanu produktów (zwiększenie - wartość dodatnia, zmniejszenie - wartość ujemna) | C11: =SUM(C12:C12) -> 4,817,665.59 | D11: =SUM(D12:D12) -> 4,391,090.38
A12: I. | B12: Przychody z działalności pożytku publicznego i zrównane z nimi: | C12: =C13+C14 -> 4,817,665.59 | D12: =D13+D14 -> 4,391,090.38
A13: 1 | B13: Przychody z nieodpłatnej działalności pożytku publicznego | C13: =4732867.01+79298.58 -> 4,812,165.59 | D13: =4184875+50000+150881.68+133.7 -> 4,385,890.38
A14: 2 | B14: Przychody z odpłatnej działalności pożytku publicznego, w tym zmiana stanu produktów (zwiększenie - wartość dodatnia, zmniejszenie - wartość ujemna) | C14: 5,500.00 | D14: 5,200.00
A15: B. | B15: Koszty realizacji zadań statutowych | C15: =SUM(C16:C16) -> 4,667,773.42 | D15: =SUM(D16:D16) -> 4,226,800.32
A16: I. | B16: Koszty działalności pożytku publicznego | C16: =C17+C24 -> 4,667,773.42 | D16: =D17+D24 -> 4,226,800.32
A17: 1 | B17: Koszty nieodpłatnej działalności pożytku publicznego | C17: =SUM(C18:C23) -> 4,662,273.42 | D17: =SUM(D18:D23) -> 4,221,600.32
A18: a) | B18: Amortyzacja | C18: 1,553.88 | D18: 508.14
A19: b) | B19: Zużycie materiałów i energii | C19: =3289.58 -> 3,289.58 | D19: 2,369.40
A20: c) | B20: Wynagrodzenia oraz ubezpieczenia społeczne i inne świadczenia | C20: 52,793.73 | D20: =42509.55+8611.32 -> 51,120.87
A21: d) | B21: Pozostałe koszty (usługi obce, podatki i połaty) | C21: =43728.45+(143810.37+20191.68)+150+601.2+7337.62+15467.97+550+3257.7+4243.5+230+1795 -> 241,363.49 | D21: =1523+150+2300.1+9997.46+906.9+6500+24463.47+11916.11+418+1400+2165.56+(1357+10660+23001) -> 96,758.60
A22: e) | B22: Koszty realizacji zadań statutowych działalności nieodpłatnej pożytku publicznego | C22: =863099.79+276900+447896.3+169149.54+150000+(70847.92-5500)+58000+55228+15000+50000+50000+10000+70000+60000+30000+10000+30000+99000-404.93+1371519.11+2500+286705+40000.01 -> 4,209,940.74 | D22: =837750.23+(165217+1388159.62+64970+10000.61+10000+151000+149875.99+28000+2460+210700+92705.92+44772+20000+57880+27280+326029.2+73828.92+15504+40000+22878+(73668.32-5200)) -> 3,807,479.81
A23: f) | B23: Pozostałe koszty realizacji zadań statutowych | C23: =70000+10332+73000 -> 153,332.00 | D23: =73000+144300+46063.5 -> 263,363.50
A24: 2. | B24: Koszty odpłatnej działalności pożytku publicznego | C24: =SUM(C25:C28) -> 5,500.00 | D24: =SUM(D25:D28) -> 5,200.00
A25: a) | B25: Amortyzacja
A26: b) | B26: Zużycie materiałów i energii
A27: c) | B27: Wynagrodzenia oraz ubezpieczenia społeczne i inne świadczenia
A28: d) | B28: Pozostałe koszty | C28: 5,500.00 | D28: 5,200.00
A29: C. | B29: Pozostałe przychody i zyski, w tym aktualizacja wartości aktywów | C29: =790.26+36.53+690+100 -> 1,616.79 | D29: =678.91+559 -> 1,237.91
A30: D. | B30: Pozostałe koszty i straty, w tym aktualizacja wartości aktywów | C30: 627.28 | D30: =508.18+984 -> 1,492.18
A31: E. | B31: Wynik finansowy ogółem (A-B+C-D) | C31: =C11-C15+C29-C30 -> 150,881.68 | D31: =D11-D15+D29-D30 -> 164,035.79
A32: I. | B32: Nadwyżka przychodów nad kosztami (wartość dodatnia) | C32: =IF(C31>0,C31,0) -> 150,881.68 | D32: =IF(D31>0,D31,0) -> 164,035.79
A33: II. | B33: Nadwyżka kosztów nad przychodami (wartość ujemna) | C33: =IF(C31<0,C31,0) -> 0.00 | D33: =IF(D31<0,D31,0) -> 0.00
A37: Data sporządzenia: 30 marca 2018 r. | C37: Zatwierdził :
A39: Sporzadziła : Renata Kasperowicz
C40: Mariola Urbanowska - Jęcek ……………………………..
C42: Marcin Gendźwiłł ……………………………..
C45: Barbara Wójcicka - Bartłomiejczyk ……………………………..
C48: Agnieszka Dolna ……………………………..
C51: Marta Szulc ……………………………..
C54: Adam Aleksiejuk ……………………………..
E58: Podpisy
